lending/lending_fUSD_20240603
["ID","MTS","AMOUNT","RATE_DAILY","PERIOD"]
[328441695,1717389071827,-1173.66,0.00032876,4]
[328441696,1717389071836,-696.56,0.00032876,4]
[328441697,1717389071844,-5921.43,0.00032876,4]
[328441698,1717389071857,-539.44,0.00032876,4]
[328441699,1717389071866,-848.91,0.00032876,4]
[328441700,1717389071875,-1286.49,0.00032876,4]
[328441701,1717389071884,-500.0,0.00032876,4]
[328441702,1717389071893,-559.62,0.00032876,4]
[328441703,1717389071902,-632.25,0.00032876,4]
[328441704,1717389071911,-565.7,0.00032876,4]
[328441705,1717389071920,-2118.74,0.00032876,4]
[328441706,1717389071929,-909.21,0.00032876,4]
[328441707,1717389071938,-651.84,0.00032876,4]
[328441708,1717389071947,-537.35,0.00032876,4]
[328441709,1717389071957,-500.0,0.00032876,4]
[328441710,1717389071966,-982.23,0.00032876,4]
[328441711,1717389071974,-4493.09,0.00032876,4]
[328441712,1717389071983,-252.76720125,0.00032876,4]
[328441713,1717389071992,-719.21,0.00032876,4]
[328441714,1717389072001,-793.36,0.00032876,4]
[328441715,1717389072010,-179.0330187,0.00032876,4]
[328441716,1717389072020,-633.56,0.00032876,4]
[328441717,1717389072029,-1664.07,0.00032876,4]
[328441718,1717389072038,-576.29,0.00032876,4]
[328441719,1717389072047,-732.02,0.00032876,4]
[328441720,1717389072057,-583.29,0.00032876,4]
[328441721,1717389072066,-1096.54,0.00032876,4]
[328441722,1717389072075,-574.86,0.00032876,4]
[328441723,1717389072085,-1037.87,0.00032876,4]
[328441724,1717389072094,-1896.28,0.00032876,4]
[328441725,1717389072106,-848.97,0.00032876,4]
[328441726,1717389072116,-994.65,0.00032876,4]
[328441727,1717389072125,-696.39,0.00032876,4]
[328441728,1717389072134,-166.68974323,0.00032876,4]
[328441729,1717389072144,-1445.97,0.00032876,4]
[328441730,1717389072153,-855.5,0.00032876,4]
[328441731,1717389072163,-500.0,0.00032876,4]
[328441732,1717389072172,-509.19,0.00032876,4]
[328441733,1717389072183,-822.77,0.00032876,4]
[328441734,1717389072192,-815.25,0.00032876,4]
[328441735,1717389072201,-559.21,0.00032876,4]
[328441736,1717389072212,-1934.31,0.00032876,4]
[328441737,1717389072221,-1176.86,0.00032876,4]
[328441738,1717389072231,-2118.35,0.00032876,4]
[328441739,1717389072240,-759.25,0.00032876,4]
[328441740,1717389072249,-912.58,0.00032876,4]
[328441741,1717389072259,-412.70905771,0.00032876,4]
[328441742,1717389072269,-1405.62,0.00032876,4]
[328441743,1717389072279,-1421.66,0.00032876,4]
[328441744,1717389072288,-500.0,0.00032876,4]
[328441745,1717389072297,-566.0,0.00032876,4]
[328441746,1717389072306,-731.5890258,0.00032876,4]
[328441747,1717389072443,-473.12237669,0.00027944,2]
[328441748,1717389072455,-484.86558473,0.00032876,4]
[328441749,1717389072466,-453.33426103,0.00032876,4]
[328441750,1717389072477,-646.1708148,0.00032876,4]
[328441751,1717389072490,-1502.14020389,0.00032876,4]
[328441752,1717389072500,-128.34010975,0.00032876,4]
[328441753,1717389072510,-530.15,0.00032876,4]
[328441754,1717389072521,-668.64760051,0.00032876,4]
[328441755,1717389072539,-500.0,0.00032602,4]
[328441756,1717389072549,-778.49239949,0.00032876,4]
[328441757,1717389072558,-3978.03080086,0.00032876,4]
[328441758,1717389072569,-531.01667298,0.00032876,4]
[328441759,1717389072580,-339.18708778,0.00032876,4]
[328441760,1717389072592,-771.59383202,0.00032876,4]
[328441761,1717389072606,-596.8060094,0.00032876,4]
[328441762,1717389072617,-1243.67771783,0.00032876,4]
[328441763,1717389072629,-450.180002,0.00032876,4]
[328441764,1717389072787,-1362.98079444,0.00027944,2]
[328441765,1717389072798,-650.654916,0.00027944,2]
[328441766,1717389073011,-2021.25239209,0.00027944,2]
[328441767,1717389073021,-4880.81787713,0.00032876,4]
[328441768,1717389073029,-818.94,0.00032876,4]
[328441769,1717389073039,-733.27,0.00032876,4]
[328441770,1717389073048,-768.52,0.00032876,4]
[328441771,1717389073057,-500.0,0.00032876,4]
[328441772,1717389073066,-300.0,0.00032877,10]
[328441773,1717389073075,-300.0,0.00032877,10]
[328441774,1717389073084,-300.0,0.00032877,10]
[328441775,1717389073093,-300.0,0.00032877,10]
[328441776,1717389073104,-300.0,0.00032877,10]
[328441777,1717389073112,-300.0,0.00032877,10]
[328441778,1717389073122,-300.0,0.00032877,10]
[328441779,1717389073132,-300.0,0.00032877,10]
[328441780,1717389073141,-300.0,0.00032877,10]
[328441781,1717389073150,-331.73366547,0.00032877,10]
[328441782,1717389073161,-300.0,0.00032877,10]
[328441783,1717389073171,-300.0,0.00032877,10]
[328441784,1717389073182,-300.0,0.00032877,10]
[328441785,1717389073191,-304.23929233,0.00032877,10]
[328441786,1717389073201,-556.7065775,0.00032877,2]
[328441787,1717389073211,-9021.7399336,0.00032877,2]
[328441788,1717389073220,-1318.3171485,0.00032877,2]
[328441789,1717389073229,-2915.06,0.00032881,4]
[328441790,1717389073239,-1544.48,0.00032881,4]
[328441791,1717389073248,-644.6,0.00032881,4]
[328441792,1717389073257,-547.39,0.00032881,4]
[328441793,1717389073267,-500.0,0.00032881,4]
[328441794,1717389073276,-1062.74,0.00032881,4]
[328441795,1717389073285,-1179.69,0.00032881,4]
[328441796,1717389073295,-785.78,0.00032881,4]
[328441797,1717389073304,-500.0,0.00032881,4]
[328441798,1717389073313,-1221.0,0.00032881,4]
[328441799,1717389073322,-748.54,0.00032881,4]
[328441800,1717389073332,-500.0,0.00032881,4]
[328441801,1717389073341,-801.18,0.00032881,4]
[328441802,1717389073352,-576.19,0.00032881,4]
[328441803,1717389073361,-525.18,0.00032881,4]
[328441804,1717389073520,-1096.48,0.00032881,4]
[328441805,1717389073534,-1379.61,0.00032881,4]
[328441806,1717389073544,-735.02,0.00032881,4]
[328441807,1717389073554,-500.0,0.00032881,4]
[328441808,1717389073563,-500.0,0.00032882,4]
[328441809,1717389073572,-500.0,0.00032882,4]
[328441810,1717389073581,-500.0,0.00032882,4]
[328441811,1717389073590,-500.0,0.00032882,4]
[328441812,1717389073601,-500.0,0.00032882,4]
[328441813,1717389073610,-500.0,0.00032882,4]
[328441814,1717389073620,-500.0,0.00032882,4]
[328441815,1717389073629,-500.0,0.00032882,4]
[328441816,1717389073638,-541.29,0.00032882,4]
[328441817,1717389073647,-500.0,0.00032882,4]
[328441818,1717389073657,-812.33,0.00032882,4]
[328441819,1717389073667,-155.81536049,0.00032885,7]
[328441820,1717389073676,-5004.39,0.00032887,2]
[328441821,1717389073685,-47990.31440284,0.000329,30]
[328441822,1717389073695,-161.36197756,0.000329,30]
[328441823,1717389073705,-490.55261825,0.000329,2]
[328441824,1717389073715,-178.0,0.000329,2]
[328441825,1717389073725,-5663.0406678,0.000329,2]
[328441826,1717389073734,-3583.0,0.000329,2]
[328441827,1717389073743,-1000.0,0.000329,2]
[328441828,1717389073752,-2000.0,0.000329,2]
[328441829,1717389073762,-150.0,0.000329,7]
[328441830,1717389073771,-150.0,0.00032903,120]
[328441831,1717389073782,-150.81196078,0.00032908,7]
[328441832,1717389073792,-155.04569471,0.00032931,7]
[328441833,1717389073801,-152.0,0.00032961,4]
[328441834,1717389073810,-150.0,0.00032972,7]
[328441835,1717389073820,-150.0,0.00032972,7]
[328441836,1717389073829,-150.0,0.00032972,7]
[328441837,1717389073839,-306.9110902,0.00033,5]
[328441838,1717389073848,-2526.8,0.00033,15]
[328441839,1717389073857,-900.0,0.00033,34]
[328441840,1717389073866,-515.76758785,0.00033,120]
[328441841,1717389073876,-2156.48,0.00033,30]
[328441842,1717389073885,-155.0,0.00033,4]
[328441843,1717389073895,-4000.0,0.00033,2]
[328441844,1717389073904,-4000.0,0.00033,2]
[328441845,1717389073913,-4000.0,0.00033,2]
[328441846,1717389073922,-4000.0,0.00033,2]
[328441847,1717389073931,-4000.0,0.00033,2]
[328441848,1717389073940,-4000.0,0.00033,2]
[328441849,1717389073949,-4000.0,0.00033,2]
[328441850,1717389073958,-4000.0,0.00033,2]
[328441851,1717389073966,-4000.0,0.00033,2]
[328441852,1717389073976,-4000.0,0.00033,2]
[328441853,1717389073985,-4000.0,0.00033,2]
[328441854,1717389073994,-4000.0,0.00033,2]
[328441855,1717389074004,-716.738211,0.00033,2]
[328441856,1717389074014,-182.0,0.00033,2]
[328441857,1717389074023,-2032.84367368,0.00033038,2]
[328441858,1717389074299,502.47570592,0.0002,2]
[328441859,1717389074333,257.76309621,0.0002,2]
[328441860,1717389106924,8056.80813605,0.00019451,2]
[328441861,1717389153381,155.0,0.00017259,2]
[328441863,1717389182514,150.0,0.00019725,2]
[328441867,1717389242569,1558.4548803,0.00018,2]
[328441868,1717389271890,8535.40763297,0.00017225,2]
[328441869,1717389362397,150.0,0.00019725,2]
[328441870,1717389397276,1662.24628498,0.000181,2]
[328441890,1717390170107,-226.51830624,0.000201,2]
[328441891,1717390170126,-158.26093892,0.00024284,2]
[328441892,1717390170146,-338.21,0.00024384,2]
[328441893,1717390170165,-156.14,0.00024384,2]
[328441894,1717390170186,-577.5,0.00024692,2]
[328441895,1717390170205,-224.88847247,0.00025,2]
[328441896,1717390170224,-929.09920929,0.00025,2]
[328441897,1717390170244,-308.10747308,0.00026427,2]
[328441906,1717390231969,-91.89252692,0.00026427,2]
[328441908,1717390231978,-158.44527861,0.00026427,2]
[328441910,1717390231990,-99.3178176,0.00026427,2]
[328441912,1717390232001,-170.65,0.00026511,2]
[328441914,1717390232010,-69.7521828,0.00026585,2]
[328441916,1717390232021,-180.2478172,0.00026585,2]
[328441917,1717390232030,-550.3129627,0.00026625,2]
[328441918,1717390232041,-1072.87948852,0.00026625,2]
[328441919,1717390232052,-279.50754878,0.00026625,2]
[328441920,1717390232061,-250.0,0.00026671,2]
[328441921,1717390232074,-150.0,0.00026767,2]
[328441922,1717390232085,-250.0,0.00026782,2]
[328441923,1717390232094,-7083.04,0.00026942,2]
[328441924,1717390232104,-296.69,0.00026953,2]
[328441925,1717390232113,-600.0,0.00026953,2]
[328441926,1717390232123,-577.5,0.00026956,2]
[328441927,1717390232133,-500.0,0.00027397,4]
[328441928,1717390232143,-500.0,0.00027397,4]
[328441929,1717390232152,-500.0,0.00027397,4]
[328441930,1717390232161,-500.0,0.00027397,4]
[328441931,1717390232170,-500.0,0.00027397,4]
[328441932,1717390232179,-500.0,0.00027397,4]
[328441933,1717390232188,-500.0,0.00027397,4]
[328441934,1717390232197,-500.0,0.00027397,4]
[328441935,1717390232206,-500.0,0.00027397,4]
[328441936,1717390232215,-500.0,0.00027397,4]
[328441937,1717390232224,-500.0,0.00027397,4]
[328441938,1717390232233,-500.0,0.00027397,4]
[328441939,1717390232243,-500.0,0.00027397,4]
[328441940,1717390232252,-500.0,0.00027397,4]
[328441941,1717390232260,-500.0,0.00027397,4]
[328441942,1717390232274,-500.0,0.00027397,4]
[328441943,1717390232284,-500.0,0.00027397,4]
[328441944,1717390232293,-500.0,0.00027397,4]
[328441945,1717390232302,-500.0,0.00027397,4]
[328441946,1717390232311,-500.0,0.00027397,4]
[328441947,1717390232323,-500.0,0.00027397,4]
[328441948,1717390232332,-500.0,0.00027397,4]
[328441949,1717390232342,-500.0,0.00027397,4]
[328441950,1717390232351,-500.0,0.00027397,4]
[328441951,1717390232360,-500.0,0.00027397,4]
[328441952,1717390232370,-625.44,0.00027397,4]
[328441953,1717390232379,-515.53781514,0.00027397,4]
[328441954,1717390232388,-512.62719134,0.00027397,4]
[328441955,1717390232398,-512.73404659,0.00027397,4]
[328441956,1717390232408,-209.64,0.00027413,2]
[328441957,1717390232417,-500.0,0.00027671,4]
[328441958,1717390232427,-580.41,0.00027671,4]
[328441959,1717390232436,-570.88,0.00027671,4]
[328441960,1717390232445,-500.0,0.00027671,4]
[328441961,1717390232455,-500.0,0.00027671,4]
[328441962,1717390232465,-500.0,0.00027671,4]
[328441963,1717390232474,-500.0,0.00027671,4]
[328441964,1717390232483,-524.19,0.00027671,4]
[328441965,1717390232493,-576.06,0.00027671,4]
[328441966,1717390232503,-500.0,0.00027671,4]
[328441967,1717390232512,-500.0,0.00027671,4]
[328441968,1717390232522,-500.0,0.00027671,4]
[328441969,1717390232531,-500.0,0.00027671,4]
[328441970,1717390232541,-288.48591801,0.00027671,4]
[328441971,1717390232554,-211.51408199,0.00027671,4]
[328441972,1717390232563,-500.0,0.00027671,4]
[328441973,1717390232574,-214.45321585,0.00027671,4]
[328441974,1717390232584,-401.46920216,0.00027671,4]
[328441975,1717390232595,-98.53079784,0.00027671,4]
[328441976,1717390232605,-500.0,0.00027671,4]
[328441977,1717390232614,-463.25942942,0.00027671,4]
[328441978,1717390232625,-36.74057058,0.00027671,4]
[328441979,1717390232635,-500.0,0.00027671,4]
[328441980,1717390232644,-1902.096,0.00027835,2]
[328441981,1717390232654,-1532.23366942,0.00027835,2]
[328441982,1717390232670,-363.6,0.00027835,2]
[328441983,1717390232686,-7823.73689433,0.00027835,2]
[328441984,1717390232698,-339.175,0.00027835,2]
[328441985,1717390232709,-570.09,0.00027835,2]
[328441986,1717390232721,-432.92,0.00027835,2]
[328441987,1717390232732,-327.84906649,0.00027835,2]
[328441988,1717390232743,-4304.25438494,0.00027835,2]
[328441989,1717390232752,-4676.72518594,0.0002784,2]
[328441990,1717390232761,-191.39045614,0.00027842,4]
[328441991,1717390232771,-500.0,0.00027842,4]
[328441993,1717390232781,-500.0,0.00027842,4]
[328441995,1717390232790,-500.0,0.00027842,4]
[328441997,1717390232800,-500.0,0.00027842,4]
[328442000,1717390232809,-500.0,0.00027842,4]
[328442002,1717390232821,-500.0,0.00027842,4]
[328442004,1717390232830,-500.0,0.00027842,4]
[328442006,1717390232839,-500.0,0.00027842,4]
[328442008,1717390232848,-271.13322353,0.00027842,4]
[328442010,1717390232860,-228.86677647,0.00027842,4]
[328442012,1717390232869,-96.22557258,0.00027842,4]
[328442014,1717390232881,-403.77442742,0.00027842,4]
[328442016,1717390232891,-500.0,0.00027842,4]
[328442018,1717390232901,-500.0,0.00027842,4]
[328442020,1717390232910,-500.0,0.00027842,4]
[328442022,1717390232921,-849.38,0.00027842,4]
[328442023,1717390232931,-500.0,0.00027842,4]
[328442024,1717390232940,-450.87506644,0.00027842,4]
[328442025,1717390232952,-49.12493356,0.00027842,4]
[328442026,1717390232961,-500.0,0.00027842,4]
[328442027,1717390232971,-500.0,0.00027842,4]
[328442028,1717390232980,-500.0,0.00027842,4]
[328442029,1717390232989,-500.0,0.00027842,4]
[328442030,1717390232998,-500.0,0.00027842,4]
[328442031,1717390233010,-538.76078985,0.00027842,4]
[328442032,1717390233020,-582.47,0.00027842,4]
[328442033,1717390233029,-500.0,0.00027842,4]
[328442034,1717390233038,-500.0,0.00027842,4]
[328442035,1717390233047,-500.0,0.00027842,4]
[328442036,1717390233056,-500.0,0.00027842,4]
[328442037,1717390233067,-500.0,0.00027842,4]
[328442038,1717390233076,-500.0,0.00027842,4]
[328442039,1717390233085,-500.0,0.00027842,4]
[328442040,1717390233093,-500.0,0.00027842,4]
[328442041,1717390233103,-439.62978867,0.00027842,4]
[328442042,1717390233115,-60.37021133,0.00027842,4]
[328442043,1717390233124,-500.0,0.00027842,4]
[328442044,1717390233133,-500.0,0.00027842,4]
[328442045,1717390233143,-357.71592421,0.00027842,4]
[328442046,1717390233158,-163.59407579,0.00027842,4]
[328442047,1717390233167,-333.00262892,0.00027843,2]
[328442048,1717390233176,-4352.62298574,0.00027843,2]
[328442049,1717390233187,-340.34,0.00027843,2]
[328442050,1717390234351,315.0,0.0002,8]
[328442053,1717390238134,-822.49017547,0.00027843,2]
[328442054,1717390238228,-2068.59902885,0.00027843,2]
[328442055,1717390238240,-14181.69517129,0.00027843,2]
[328442057,1717390238252,-2598.47316635,0.00027843,2]
[328442072,1717390240662,-1350.0,0.00027843,2]
[328442075,1717390243080,-2561.994,0.00027843,2]
[328442076,1717390243093,-7932.6650723,0.00027843,2]
[328442077,1717390243102,-11133.33958081,0.00027843,2]
[328442078,1717390243159,-1714.15423298,0.00027843,2]
[328442079,1717390243170,-319.999995,0.00027843,2]
[328442080,1717390243239,-693.78630288,0.00027843,2]
[328442081,1717390243391,-800.20440538,0.00027843,2]
[328442089,1717390246081,-226.51830624,0.00027842,5]
[328442090,1717390246090,-6813.77901458,0.00027843,2]
[328442091,1717390246650,-1955.24704471,0.00027843,2]
[328442092,1717390246662,-3069.12259211,0.00027843,2]
[328442093,1717390246674,-590.82,0.00027843,2]
[328442104,1717391193154,-195.03093809,0.00021142,2]
[328442106,1717391283513,168.1316471,0.00031,120]
[328442115,1717391432317,-353.5219707,0.00021142,2]
[328442116,1717391432327,-261.2060051,0.00024045,2]
[328442117,1717391432338,-333.8939949,0.00024045,2]
[328442118,1717391432347,-94.2075481,0.00024384,2]
[328442119,1717391432359,-60.0924519,0.00024384,2]
[328442120,1717391432371,-159.93,0.00024384,2]
[328442121,1717391432383,-1250.0,0.00025,2]
[328442122,1717391432395,-1136.08,0.00025757,2]
[328442123,1717391432404,-26598.95,0.00025782,2]
[328442124,1717391432414,-250.0,0.00025795,2]
[328442125,1717391432424,-1000.0,0.00025848,2]
[328442126,1717391432435,-499.99,0.00025848,2]
[328442127,1717391432444,-1428.13275701,0.00025898,2]
[328442128,1717391432454,-250.0,0.00025919,2]
[328442129,1717391432463,-211.19,0.00025944,2]
[328442130,1717391432472,-1466.99477011,0.0002599,2]
[328442131,1717391432482,-250.0,0.00025999,2]
[328442132,1717391432491,-1103.67,0.00026007,2]
[328442133,1717391432500,-165.38,0.00026281,2]
[328442134,1717391432509,-595.1,0.00026308,2]
[328442135,1717391432519,-246.37713277,0.00026427,2]
[328442136,1717391432528,-265.31867228,0.00026427,2]
[328442137,1717391432538,-1361.43772127,0.00026427,2]
[328442138,1717391432547,-308.08,0.00026507,2]
[328442139,1717391432556,-1300.0,0.00027,2]
[328442140,1717391432566,-806.64368738,0.0002739,2]
[328442141,1717391432575,-62174.12887523,0.00027732,2]
[328442142,1717391432584,-14124.47311368,0.00027742,2]
[328442143,1717391432593,-4304.73686476,0.00027742,2]
[328442144,1717391432602,-26285.5363,0.00027743,2]
[328442145,1717391432612,-2500.0,0.00027743,2]
[328442146,1717391432622,-29555.90697667,0.00027842,2]
[328442147,1717391432635,-625.3983,0.00027842,2]
[328442148,1717391432647,-30970.71742333,0.00027842,2]
[328442149,1717391432656,-1000.0,0.00027842,2]
[328442150,1717391432665,-1484.87532,0.00027842,2]
[328442151,1717391432674,-172.31647899,0.00027842,2]
[328442152,1717391432683,-1363.19062239,0.00027843,2]
[328442153,1717391432692,-370.87441124,0.00027843,2]
[328442154,1717391432701,-180.83462193,0.00027843,2]
[328442155,1717391432711,-155.05751657,0.00027843,2]
[328442156,1717391432720,-363.63677021,0.0002794,4]
[328442157,1717391432730,-500.0,0.0002794,4]
[328442158,1717391432739,-337.77026414,0.00027941,4]
[328442159,1717391432749,-500.0,0.00027941,4]
[328442160,1717391432758,-500.0,0.00027941,4]
[328442161,1717391432768,-500.0,0.00027941,4]
[328442162,1717391432777,-500.0,0.00027941,4]
[328442163,1717391432786,-500.0,0.00027941,4]
[328442164,1717391432795,-500.0,0.00027941,4]
[328442165,1717391432804,-500.0,0.00027941,4]
[328442166,1717391432813,-500.0,0.00027941,4]
[328442167,1717391432822,-500.0,0.00027941,4]
[328442168,1717391432832,-500.0,0.00027941,4]
[328442169,1717391432841,-354.46650957,0.00027941,4]
[328442170,1717391432853,-145.53349043,0.00027941,4]
[328442171,1717391432862,-239.48563926,0.00027941,4]
[328442172,1717391432874,-1359.42436074,0.00027941,4]
[328442174,1717391432883,-576.44389613,0.00027941,4]
[328442176,1717391432893,-500.0,0.00027941,4]
[328442178,1717391432903,-500.0,0.00027941,4]
[328442181,1717391432912,-114.22897597,0.00027941,4]
[328442183,1717391432923,-385.77102403,0.00027941,4]
[328442185,1717391432933,-272.47897597,0.00027941,4]
[328442187,1717391432944,-227.52102403,0.00027941,4]
[328442189,1717391432953,-500.0,0.00027941,4]
[328442191,1717391432962,-553.75,0.00027941,4]
[328442193,1717391432971,-500.0,0.00027941,4]
[328442195,1717391432980,-542.46937748,0.00027942,2]
[328442197,1717391432990,-185.02061891,0.00027942,4]
[328442199,1717391432998,-500.0,0.00027942,4]
[328442201,1717391433008,-455.24704471,0.00027942,4]
[328442203,1717391433017,-500.0,0.00027942,4]
[328442205,1717391433027,-500.0,0.00027942,4]
[328442207,1717391433036,-500.0,0.00027942,4]
[328442209,1717391433046,-500.0,0.00027942,4]
[328442211,1717391433055,-500.0,0.00027942,4]
[328442213,1717391433064,-523.55149332,0.00027942,4]
[328442215,1717391433073,-500.0,0.00027942,4]
[328442217,1717391433083,-500.0,0.00027942,4]
[328442219,1717391433092,-500.0,0.00027942,4]
[328442221,1717391433101,-168.87,0.00027942,4]
[328442223,1717391433111,-247.9,0.00027942,4]
[328442225,1717391433122,-209.73,0.00027942,4]
[328442227,1717391433131,-242.06,0.00027942,4]
[328442229,1717391433141,-500.0,0.00027942,4]
[328442231,1717391433150,-639.97386694,0.00027942,4]
[328442234,1717391433162,-500.0,0.00027942,4]
[328442236,1717391433171,-500.0,0.00027942,4]
[328442238,1717391433180,-500.0,0.00027942,4]
[328442240,1717391433189,-500.0,0.00027942,4]
[328442242,1717391433199,-500.0,0.00027942,4]
[328442244,1717391433209,-500.0,0.00027942,4]
[328442245,1717391433218,-500.0,0.00027942,4]
[328442247,1717391433226,-500.0,0.00027942,4]
[328442249,1717391433236,-740.18,0.00027942,4]
[328442251,1717391433246,-500.0,0.00027942,4]
[328442253,1717391433256,-500.0,0.00027942,4]
[328442256,1717391433266,-500.0,0.00027942,4]
[328442258,1717391433275,-500.0,0.00027942,4]
[328442260,1717391433284,-500.0,0.00027942,4]
[328442262,1717391433293,-500.0,0.00027942,4]
[328442264,1717391433302,-500.0,0.00027942,4]
[328442266,1717391433311,-500.0,0.00027942,4]
[328442267,1717391433320,-651.79,0.00027942,4]
[328442270,1717391433330,-1358.14,0.00027942,4]
[328442272,1717391433339,-500.0,0.00027942,4]
[328442273,1717391433348,-500.0,0.00027942,4]
[328442275,1717391433358,-500.0,0.00027942,4]
[328442277,1717391433368,-604.46791122,0.00027942,4]
[328442278,1717391433377,-500.0,0.00027942,4]
[328442279,1717391433391,-500.0,0.00027942,4]
[328442280,1717391433400,-33262.34,0.00027942,4]
[328442281,1717391433409,-475.29468824,0.00027942,4]
[328442282,1717391433419,-500.0,0.00027942,4]
[328442283,1717391433430,-500.0,0.00027942,4]
[328442284,1717391433440,-500.0,0.00027942,4]
[328442285,1717391433449,-500.0,0.00027942,4]
[328442286,1717391433459,-349.51620576,0.00027942,4]
[328442287,1717391433473,-150.48379424,0.00027942,4]
[328442288,1717391433482,-500.0,0.00027942,4]
[328442289,1717391433491,-110.07560071,0.00027942,4]
[328442290,1717391433502,-389.92439929,0.00027942,4]
[328442291,1717391433511,-69.56431271,0.00027942,4]
[328442292,1717391433525,-430.43568729,0.00027942,4]
[328442293,1717391433534,-500.0,0.00027942,4]
[328442294,1717391433543,-513.68604368,0.00027942,4]
[328442295,1717391433553,-500.0,0.00027942,4]
[328442296,1717391433562,-500.0,0.00027942,4]
[328442297,1717391433571,-713.89,0.00027942,4]
[328442298,1717391433579,-500.0,0.00027942,4]
[328442299,1717391433589,-500.0,0.00027942,4]
[328442300,1717391433598,-163.13090351,0.00027942,4]
[328442301,1717391433609,-361.57909649,0.00027942,4]
[328442302,1717391433620,-98.8521387,0.00027942,4]
[328442303,1717391433631,-274.4478613,0.00027942,4]
[328442304,1717391433640,-587.4,0.00027942,4]
[328442305,1717391433649,-637.11,0.00027942,4]
[328442306,1717391433659,-545.02,0.00027942,4]
[328442307,1717391433668,-500.0,0.00027942,4]
[328442308,1717391433677,-451.02520261,0.00027942,4]
[328442309,1717391433688,-387.64479739,0.00027942,4]
[328442310,1717391433697,-500.0,0.00027942,4]
[328442311,1717391433707,-500.0,0.00027942,4]
[328442312,1717391433717,-500.0,0.00027942,4]
[328442313,1717391433727,-500.0,0.00027942,4]
[328442314,1717391433736,-500.0,0.00027942,4]
[328442315,1717391433745,-513.02,0.00027942,4]
[328442316,1717391433754,-494.78880603,0.00027942,4]
[328442317,1717391433763,-433.7472917,0.00027943,2]
[328442318,1717391433773,-1383.76486809,0.00027943,2]
[328442319,1717391433782,-155.0,0.00027943,2]
[328442320,1717391433791,-4622.91986934,0.00027943,2]
[328442321,1717391433800,-1803.30077465,0.00027943,2]
[328442322,1717391433810,-500.0,0.00028214,4]
[328442323,1717391433818,-500.0,0.00028215,4]
[328442324,1717391433828,-500.0,0.00028215,4]
[328442325,1717391433837,-500.0,0.00028215,4]
[328442326,1717391433846,-500.0,0.00028215,4]
[328442327,1717391433855,-500.0,0.00028215,4]
[328442328,1717391433864,-500.0,0.00028215,4]
[328442329,1717391433875,-500.0,0.00028215,4]
[328442330,1717391433885,-500.0,0.00028215,4]
[328442331,1717391433895,-500.0,0.00028215,4]
[328442332,1717391433904,-500.0,0.00028215,4]
[328442333,1717391433913,-500.0,0.00028215,4]
[328442334,1717391433922,-500.0,0.00028215,4]
[328442335,1717391433931,-500.0,0.00028215,4]
[328442336,1717391433940,-500.0,0.00028215,4]
[328442337,1717391433950,-500.0,0.00028215,4]
[328442338,1717391433959,-813.99,0.00028215,4]
[328442339,1717391433968,-24.02425797,0.00028215,4]
[328442342,1717391438181,-500.0,0.00027941,4]
[328442343,1717391438191,-475.97574203,0.00028215,4]
[328442344,1717391438200,-87.02391069,0.00028215,4]
[328442345,1717391438668,-412.97608931,0.00028215,4]
[328442346,1717391438678,-500.0,0.00028215,4]